{"text_format":"3","workbook":"xlsx","n_sheets":1,"sheets":["Sheet1"],"not_rendered":{"defined_names":2},"read":"whole","date_system":"1900"}

{"sheet":"Sheet1","index":0,"n_rows":88,"n_cols":24,"rows_kept":88,"merged":[[0,0,0,22],[1,0,1,6],[1,12,1,20],[2,0,3,0],[2,1,3,1],[2,2,3,2],[2,3,3,3],[2,4,3,4],[2,5,3,5],[2,6,3,6],[2,7,3,7],[2,8,3,8],[2,9,3,9],[2,10,3,10],[2,11,2,15],[2,16,3,16],[2,17,3,17],[2,18,3,18],[2,19,2,20],[2,21,2,22],[17,0,17,6],[27,0,27,6],[38,0,38,6],[46,0,46,6],[59,0,59,6],[69,0,69,6],[77,0,77,6],[84,0,84,6],[86,0,86,6],[87,0,87,6]]}
["鄯善县2024年县级巩固拓展脱贫攻坚成果和乡村振兴项目库入库项目汇总公示表"]
["填报单位（盖章）：",{"$nulls":11},"填报日期：2023年12月5日"]
["序号","项目库编号","项目名称","项目类别","项目子类型","建设性质","实施地点","主要建设内容","建设单位","建设规模","资金规模   （万元）","资金来源（万元）",{"$nulls":4},"责任单位","责任人","绩效目标","受益户数情况",null,"受益人口情况"]
[{"$nulls":11},"中央衔接资金","自治区衔接资金","其他涉农整合资金","地方政府债券资金","其他资金",{"$nulls":3},"受益户户数","其中：受益脱贫户户数","受益人口数","其中：受益脱贫人口数"]
[1,"SSX2024001","吐峪沟乡葡萄架式改造建设项目","产业发展","生产项目-种植业基地","新建","苏贝希夏村、吐峪沟村、杏花村、幸福村、洋海村、洋海夏村、团结村、潘家坎儿孜村、碱滩坎村、泽日甫村、克尔火焰山村","为全乡脱贫户进行架式改造3335亩，其中，横木40根/亩，20元/根,小计800元/亩；水泥桩40根/亩，20元/根，小计800元/亩；铁丝100公斤/亩，6.5元/公斤，小计650元/亩，每亩共计2250元，合计750.375万元。（含项目前期费用）","亩",3335,750.375,750.375,{"$nulls":4},"吐峪沟乡人民政府","陈鑫","通过葡萄架势改造，能够进一步改善葡萄种植环境，提高葡萄种植产能，促进脱贫群众增收致富，同时能够进一步提振脱贫群众勤劳致富的信心和决心，提升老百姓的幸福感和获得感。",6930,1122,27470,4372]
[2,"SSX2024002","吐峪沟乡潘家坎村农产品保鲜库建设项目","产业发展","加工流通项目-农产品仓储保鲜冷链基础设施建设","新建","潘家坎儿孜村","新建农产品保鲜库5座，面积100㎡/座，5000元/㎡，50万元/座，共计250万元（含项目前期费用）。","座",5,250,250,{"$nulls":4},"吐峪沟乡人民政府","陈鑫","该项目的实施，可以有效提高鲜食葡萄及瓜果品质，延长保质期，降低鲜食葡萄及瓜果的采摘、运输、销售成本，在发展壮大村集体经济收益的同时，能够是广大脱贫群众享受红利，提高脱贫户收入。",551,155,2104,556]
[3,"SSX2024003","吐峪沟乡环卫设备采购项目","乡村建设行动","人居环境整治-农村垃圾治理","新建","潘家坎村、碱滩坎村、洋海夏村","购置多功能洒水车3辆，其中，潘家坎村1辆、碱滩坎村1辆、洋海夏村1辆，22万元/辆，小计66万元。洋海夏村购买垃圾清运车1辆，20万元/辆。合计86万元。","辆",4,{"v":86,"d":"86.00"},{"v":86,"d":"86.00"},{"$nulls":4},"吐峪沟乡人民政府","陈鑫","该项目的实施，可以有效改善辖区群众生产生活环境，解决农村生活垃圾乱堆乱放，不能及时处理的问题，促进村庄人居环境整治力度。",2265,375,8449,1416]
[4,"SSX2024004","吐峪沟乡公共照明设施建设项目","乡村建设行动","农村公共服务-公共照明设施","新建","潘家坎村、碱滩坎村、泽日甫村、洋海夏村","购置太阳能路灯194盏，其中：潘家坎村50盏，高8米，3500元/盏，小计17.5万元；碱滩坎村80盏，泽日甫村44盏，洋海夏村20盏，灯杆高6米，3000元/盏，小计43.2万元。合计60.7万元。","盏",194,60.7,60.7,{"$nulls":4},"吐峪沟乡人民政府","陈鑫","该项目的实施，可以改善村庄人居环境，为群众夜间出行提供便利条件，同时有助于繁荣农村夜间经济，促进脱贫户就业创业，有助于提高群众收入。",551,513,2104,1913]
[5,"SSX2024005","吐峪沟乡农用机械及配套设备采购项目","产业发展","产业服务支撑项目-农业社会化服务","新建","团结村、碱滩坎村、泽日甫村","购买葡萄开墩机及配套设备2台，其中，团结村1台，碱滩坎村1台。8万元/台，小计16万元。购买葡萄埋藤机3台，其中，团结村1台，碱滩坎村1台，泽日甫村1台，5万元/台，小计15万元。合计31万元。","台",5,31,31,{"$nulls":4},"吐峪沟乡人民政府","陈鑫","该项目的实施，可以发展壮大村集体经济，可以使脱贫户就业，提高收入，减轻辖区无劳动力家庭的葡萄开墩、埋墩支出，提高群众收入。",2044,396,7724,1469]
[6,"SSX2024006","吐峪沟乡泽日甫村沥青道路建设项目","乡村建设行动","农村基础设施（含产业配套基础设施）-产业路、资源路、旅游路建设","新建","泽日甫村","新建沥青道路3.8公里，宽度5米，58万元/公里，合计220.4万元（含项目前期费用）。","公里",3.8,220.4,220.4,{"$nulls":4},"吐峪沟乡人民政府","陈鑫","该项目的实施，可以有效改善村庄基础设施，为群众生产生活提供便利，改善群众生产生活条件。",884,128,3148,463]
[7,"SSX2024007","吐峪沟乡泽日甫村防渗渠建设项目","产业发展","配套设施项目-小型农田水利设施建设","新建","泽日甫村","新建防渗渠1.58公里，流量为0.5m³/s，45万元/公里，共计71.1万元（含项目前期费）。","公里",1.58,71.1,71.1,{"$nulls":4},"吐峪沟乡人民政府","陈鑫","该项目的实施，可以使水资源得到充分利用，对农业节水工作提供有利条件，较好地改善群众农业生产条件，有助于降低农业生产成本，进一步提高农民收入。",884,128,3148,463]
[8,"SSX2024008","吐峪沟乡克尔火焰山村防渗渠建设项目","产业发展","配套设施项目-小型农田水利设施建设","新建","克尔火焰山村","新建防渗渠4.2公里，设计流量0.5m³，45万元/公里，合计189万元（含项目前期费用）。","公里",4.2,{"v":189,"d":"189.00"},{"v":189,"d":"189.00"},{"$nulls":4},"吐峪沟乡人民政府","陈鑫","该项目的实施，可以解决该村近2000亩葡萄地无法使用地表水灌溉问题，对农业节水工作提供有利条件，较好地改善群众农业生产条件，有助于降低农业生产成本，进一步提高农民收入。",342,23,1574,82]
[9,"SSX2024009","吐峪沟乡洋海夏村沥青道路建设项目","乡村建设行动","农村基础设施（含产业配套基础设施）-产业路、资源路、旅游路建设","新建","洋海夏村","新建沥青道路2.8公里，宽6米，65万元/公里，合计182万元（含项目前期费用）。","公里",2.8,182,182,{"$nulls":4},"吐峪沟乡人民政府","陈鑫","该项目的实施，缩短了洋海夏村和洋海湾社区的距离，避开了村内人员密集区域，能够对瓜果销售期间车辆进行分流，降低交通事故风险。教师家属区沥青道路可以有效改变车辆路过造成的尘土飞扬的局面，改善人居环境。",780,13,3250,49]
[10,"SSX2024010","吐峪沟乡机电井设备更新项目","产业发展","配套设施项目-小型农田水利设施建设","新建","团结村、洋海村、洋海夏村、碱滩坎村、泽日甫村","更新机电井老旧设备12套，其中，团家村3套，洋海村2套，碱滩坎村2套，泽日甫村2套，洋海夏村3套。包括55kw水泵12个，1.6万元/个，小计19.2万元；100KW变压器12台（含接线、跌落式保险等相关附件，满足电力部门验收标准），4万元/台，小计48万元，配套电缆线、抽水管、启动柜等，小计64.8万元，合计132万元。","套",12,132,132,{"$nulls":4},"吐峪沟乡人民政府","陈鑫","该项目的实施，能够降低灌溉过程水损耗，提高水利用率，改善农业基础设施，减少农民农业生产成本。",644,114,2336,440]
[11,"SSX2024011","吐峪沟乡幸福村农产品保鲜库建设项目","产业发展","加工流通项目-农产品仓储保鲜冷链基础设施建设","新建","幸福村","新建农产品保鲜库5座，面积100平方米/座，5000元/平方米，50万元/座，共计250万元。（含项目前期费用）","座",5,250,250,{"$nulls":4},"吐峪沟乡人民政府","陈鑫","项目实施后，对提高土地产出率，资源利用率和农业效益，增加农业综合生产力具有重要作用。能够发展优质葡萄生产，不断提高产品质量，满足现代人追求安全、健康、绿色食品的要求。",622,165,2628,653]
[12,"SSX2024012","吐峪沟乡碱滩坎村道路硬化建设项目","乡村建设行动","农村基础设施（含产业配套基础设施）-产业路、资源路、旅游路建设","新建","碱滩坎村","硬化道路3.1公里，其中：2.9公里宽5米，55万元/公里，小计159.5万元；0.2公里宽4米，45万元/公里，小计9万元，合计168.5万元（含项目前期费用）。","公里",3.1,168.5,168.5,{"$nulls":4},"吐峪沟乡人民政府","陈鑫","该项目的实施，可以有效改善村庄基础设施，为群众生产生活提供便利，改善群众生产生活条件。",551,155,2104,556]
[13,"SSX2024013","吐峪沟乡洋海夏村道路硬化建设项目","乡村建设行动","农村基础设施\n（含产业配套基础设施）-农村道路建设","新建","洋海夏村","硬化道路2.5公里（洋海夏村新区），路宽5米，55万元/公里，共计137.5万元（含项目前期费用）。","公里",2.5,137.5,137.5,{"$nulls":4},"吐峪沟乡人民政府","陈鑫","该项目建成后，有效改善洋海夏新区村容村貌，改变群众出行条件，降低扬尘危害，促进洋海夏新区规范化建设。",600,10,2500,35]
["吐峪沟乡合计",{"$nulls":9},{"$f":"SUM(K5:K17)","v":2528.575},{"$f":"SUM(L5:L17)","v":2528.575}]
[14,"SSX2024014","鲁克沁镇赛尔克甫夏村农副产品分拣包装建设项目","产业发展","加工流通项目-产地初加工和精深加工","新建","赛尔克甫夏村","赛尔克甫村农副产品加工及交易中心项目西侧,计划新建：1、葡萄干深加工厂房1座2567平方米，0.16万元/平方米，小计410.72万元；2、值班室60平方米，0.25万元/平方米，小计15万元；3、化粪池1座，小计10万元；4、过路桥涵2座，每座宽5米，长10米，小计16万元；5、给水管线850米,管径PE90，0.03万元/米，小计25.5万元；6、变压器800千瓦1台，厂区内电缆线1550米，厂区外290米，小计56万元；7、排水管线600米,管径DN300，0.05万元/米，小计30万元；8、太阳能路灯20盏，高6米，0.3万元/盏，小计6万元；9、场地硬化7500平方米，厚20公分,0.015万/平方米，小计112.5万元；10、围栏835米，高2米，0.026万元/米，小计21.71万元。共计投资703.43万元（含项目前期费）","处",1,703.43,703.43,{"$nulls":4},"鲁克沁镇人民政府","李金山","通过实施该项目，提高葡萄干品质，增加我镇农产品销售量，拓宽销售渠道，提高群众收入，带动就业率，使我镇葡萄干从生产到水洗、烘干、包装形成一条龙产业发展，可加大产品质量得到质的飞跃。项目实施后覆盖涉及山南四乡镇预计受益人口45000余人。",10900,1100,45000,2865]
[15,"SSX2024015","鲁克沁镇阿曼夏村田间混凝土道路建设项目","乡村建设行动","农村基础设施（含产业配套基础设施）-产业路、资源路、旅游路建设","新建","阿曼夏村","阿曼夏村新建田间混凝土道路9.5公里，宽度4米，48万元/公里，项目总投资456万元。（含项目前期费）","公里",9.5,456,456,{"$nulls":4},"鲁克沁镇人民政府","李金山","通过项目实施，大力改善当前田间道路现状，提高农民生产生活条件，解决群众出行困难问题，确保群众出行安全，为群众日常生活提供便利，提高收入。",721,134,2152,302]
[16,"SSX2024016","鲁克沁镇公共照明设备更换项目","乡村建设行动","农村公共服务--公共照明设施","新建","阿曼夏村、三个桥村、赛尔克甫村、赛尔克甫夏村、沙坎村、吐曼格博依村","更换太阳能路灯852盏（更换太阳能板、灯头、电池），其中：阿曼夏村105盏、三个桥村165盏、赛尔克甫村163盏、赛尔克甫夏村149盏、沙坎村162盏、吐曼格博依村108盏，太阳能板电池功率（140W），光源灯珠100颗，0.16万元/盏，共计投资136.32万元。","盏",852,136.32,136.32,{"$nulls":4},"鲁克沁镇人民政府","李金山","项目实施能够有效为群众出行提供便利，为群众夜间出行提供安全保障。",1646,132,6782,221]
[17,"SSX2024017","鲁克沁镇自来水建设项目","乡村建设行动","农村基础设施（含产业配套基础设施）--农村供水保障设施建设","新建","赛尔克甫村、赛尔克甫夏村","鲁克沁镇自来水建设项目，其中赛尔克甫村铺设主管道3公里，管径DN250（含修复路面），65万元/公里，合计195万元；赛尔克甫夏村174户的配水及入户管材、水表井、水表及附属配件，0.3万元/户，合计52.2万元；共计投资金额247.2万元。（含项目前期费）。","公里",3,247.2,247.2,{"$nulls":4},"鲁克沁镇人民政府","李金山","通过项目实施，进一步完善赛尔克甫夏村、赛尔克甫村的基础设施，解决供水不足的问题，加快俩村经济发展的速度，改善村民的生活水平、增加农民的经济收入，可以完善村庄的自来水管网的普及加强管道，解决停水问题，为群众提供便利。",632,257,2555,942]
[18,"SSX2024018","鲁克沁镇防渗渠建设项目","产业发展","配套设施项目-小型农田水利设施建设","新建","赛尔克甫村、赛尔克甫夏村","新建11公里防渗渠，其中：赛尔克甫村6公里，赛尔克甫夏村5公里，设计流量0.25m3/s,均价30万元/公里，项目总投资330万元。（含项目前期费）","公里",11,330,330,{"$nulls":4},"鲁克沁镇人民政府","李金山","主防渗渠于1997年建成，多处损坏，严重老旧。该项目实施后能够改善老百姓葡萄地浇灌问题，有助于不断提升群众的满意度，为共同打造美丽乡村促进乡村振兴夯实基础。",632,257,2555,942]
[19,"SSX2024019","鲁克沁镇人居环境整治建设项目","乡村建设行动","人居环境整治--农村垃圾治理","新建","吐格曼博依村、迪汗苏村","鲁克沁镇人居环境整治建设项目，其中吐格曼博依村购置5.5立方多功能洒水车1辆，15万元/辆，小计15万元；12立方压缩式垃圾清运车1辆，33万元/辆，小计33万元；迪汗苏村购置5.5立方多功能洒水车1辆，15万元/辆，小计15万元；12立方压缩式垃圾清运车1辆,33万元/辆，小计33万元；道路清扫车1辆，28万元/辆，小计28万元；共计投资金额124万元。","辆",5,124,124,{"$nulls":4},"鲁克沁镇人民政府","李金山","有效改善村容村貌，提升群众满意度。",621,42,1655,121]
[20,"SSX2024020","鲁克沁镇赛尔克甫夏村路面拓宽建设项目","乡村建设行动","农村基础设施（含产业配套基础设施）--农村道路建设","新建","赛尔克甫夏村","赛尔克甫夏村129乡道进行路面拓宽，宽1.5米，共拓宽道路面积12150平方米，310元/平方米，共计376.65万元。（含项目前期费）","平方米",12150,376.65,376.65,{"$nulls":4},"鲁克沁镇人民政府","李金山","通过项目建设，可大力改善农村道路现状，改善农民生活条件，减少交通事故发生。",753,276,3303,1047]
[21,"SSX2024021","鲁克沁镇吐格曼博依村防渗渠建设项目","产业发展","配套设施项目--小型农田水利设施建设","新建","吐格曼博依村","新建防渗渠11公里，流量0.25m³/s，30万元/公里,投资额330万元。（含项目前期费）","公里",11,330,330,{"$nulls":4},"鲁克沁镇人民政府","李金山","该项目实施后能够改善老百姓葡萄地浇灌问题，有助于不断提升群众的满意度，为共同打造美丽乡村促进乡村振兴夯实基础。",462,2,2230,10]
[22,"SSX2024022","鲁克沁镇冷库建设项目","产业发展","加工流通项目--农产品仓储保鲜冷链基础设施建设","新建","吐格曼博依村、三个桥村","鲁克沁镇冷库建设项目，其中（吐格曼博依村冷库建设内容，地坪面积500平方米，厚度18公分，，130元/平方米，小计6.5万元，围栏长380米，高2米，260元/米，小计9.88万元。变压器1台200千瓦，电缆线50米，小计16万元；三个桥村新建冷库400平方米（含附属设施），0.5万元/平方米，小计200万元，投资金额232.38万元。（含项目前期费）","平方米",900,232.38,232.38,{"$nulls":4},"鲁克沁镇人民政府","李金山","创造优美环境吸引鲜食葡萄顾客，解决鲜食葡萄老板住宿问题和鲜食葡萄冷藏问题，壮大村集体经济。",912,191,3160,411]
["鲁克沁镇合计",{"$nulls":9},{"$f":"SUM(K19:K27)","v":2935.98},{"$f":"SUM(L19:L27)","v":2935.98}]
[23,"SSX2024023","迪坎镇公共照明建设项目","乡村建设行动","农村公共服务-公共照明设施","新建","坎儿孜库勒村、塔什塔盘村、迪坎尔村、也扎坎儿孜村、玉尔门村、托特坎儿孜村","采购路灯468盏，其中：坎儿孜库勒村55盏、迪坎尔村88盏、也扎坎儿孜村105盏、玉尔门村60盏、托特坎儿孜村110盏、塔什塔盘村50盏，高度6米，0.3万元/盏，计140.4万元；更换也扎坎儿孜村路灯（太阳能板、灯头、电池）60盏，0.16万元/盏，计9.6万元。共计150万元。","盏",528,150,150,{"$nulls":4},"迪坎镇人民政府","马亮","改善群众夜间出行条件，确保夜间道路交通安全。",1843,118,7424,456]
[24,"SSX2024024","迪坎镇机电井配套设备更新建设项目","产业发展","配套设施项目-小型农田水利设施建设","新建","坎儿孜库勒村、也扎坎儿孜村、玉尔门村、托特坎儿孜村、塔什塔盘村","更新机电井设备44套（坎儿孜库勒村15套、也扎坎儿孜村10套、玉尔门村4套、托特坎儿孜村8套、塔什塔盘村7套）其中包括：购置水泵44个{37KW11个（玉尔门村4个、塔什塔盘村7个）、55KW水泵25个（坎儿孜库勒村15个、也扎坎儿孜村10个），托特坎儿孜村45W水泵8个，37KW1.2万元/个，45KW1.4万元/个，55KW1.6万/个，计64.4万元}；电缆线9980米（坎儿孜库勒村3600米、也扎坎儿孜村2400米、玉尔门村960米、托特坎儿孜村1920米、塔什塔盘村1100米），0.005万元/米，计49.9万元；5寸6米的抽水管871根（坎儿孜库勒村360根、也扎坎儿孜村240根、玉尔门村96根、塔什塔盘村175根），每根0.05万元，计43.55万元，托特坎儿孜村6寸6米的抽水管192根，每根0.06万元，计11.52万元，启动柜44个，每个0.6万元，计26.4万元；100KW变压器44台，每台4万元（含扩容费用），计176万元。合计371.77万元。","套、米、根、个、台","44、9980、1063、44、44",371.77,371.77,{"$nulls":4},"迪坎镇人民政府","马亮","有效改善机电井出水量，提高灌溉效率，提高葡萄亩产量，增加群众收益。",1535,52,6269,200]
[25,"SSX2024025","迪坎镇机械设备采购项目","产业发展","产业服务支撑项目-农业社会化服务","新建","迪坎村、坎儿孜库勒村、托特坎儿孜村、塔什塔盘村、玉尔门村、也扎坎儿孜村","购置铡草揉丝机6台（坎尔孜库勒村1台、塔什塔盘村1台、玉尔门村1台、迪坎村1台、托特坎儿孜村1台、也扎坎儿孜村1台），10万元/辆，计60万元；塔什塔盘村购置200马力拖拉机1台（含犁地机、旋耕），80万元/台，计80万元，购置75马力葡萄开墩埋墩机4台，8万元/台，计32万元。塔什塔盘村购置50铲车1台，50万元/台，计50万元；合计222万元。","台",12,222,222,{"$nulls":4},"迪坎镇人民政府","马亮","提升农业机械化，节约种植成本，进一步壮大村集体收入。",1843,118,7424,456]
[26,"SSX2024026","鄯善县迪坎镇塔什塔盘村2024年村庄整治提升中央财政以工代赈项目","乡村建设行动","农村基础设施（含产业配套基础设施）-产业路、资源路、旅游路建设","新建","塔什塔盘村","新建路肩硬化4.61公里（两侧各1.5米宽），灌溉渠道4.61公里，村中心绿化管网改造1.1公里，道路硬化800米（宽6米）。","公里、米","5.71、800",398,398,{"$nulls":4},"迪坎镇人民政府","马亮","有效改善群众出行问题，提升群众生产生活条件。",315,0,1235,0,2024]
[27,"SSX2024027","鄯善县迪坎镇玉尔门村2024年村庄整治提升中央财政以工代赈项目","乡村建设行动","农村基础设施（含产业配套基础设施）-农村道路建设","新建","玉尔门村","百姓文化广场场地硬化3500平方米，铺设机耕道砂硕路10公里，路肩硬化400米（两侧各1.5米宽）。","平方米、公里、米","3500、10、400",390,390,{"$nulls":4},"迪坎镇人民政府","马亮","改善人居环境，提升生活质量。",161,0,677,0]
[28,"SSX2024028","鄯善县迪坎镇迪坎村2024年文化旅游产业基础设施中央财政以工代赈项目","产业发展","生产项目-休闲农业与乡村旅游","新建","迪坎村","新建道路护肩4公里（两侧各2米宽），蓄水池防渗3700平方米，百姓大舞台场地硬化3500平方米。","公里、平方米","4、7200",323,323,{"$nulls":4},"迪坎镇人民政府","马亮","改善自然和人文环境，提高人民生活水平和职业技能水平。",253,66,974,256]
[29,"SSX2024029","鄯善县迪坎镇塔什塔盘村2024年村容村貌提升中央财政以工代赈项目","乡村建设行动","农村基础设施（含产业配套基础设施）-农村道路建设","新建","塔什塔盘村","修缮绿化带护坡15公里（单侧1.5米宽），道路硬化500米（宽4米）。","公里",15,260,260,{"$nulls":4},"迪坎镇人民政府","马亮","改善村民生活环境，改善空气质量",315,0,1235,0,2024]
[30,"SSX2024030","鄯善县迪坎镇坎儿孜库勒村2024年文化体育配套基础设施中央财政以工代赈项目","乡村建设行动","农村公共服务-其他（文化活动广场）","新建","坎儿孜库勒村","村民健身休闲广场、篮球场、活动场地硬化9600平方米及相关附属设施建设。","平方米",9600,399,399,{"$nulls":4},"迪坎镇人民政府","马亮","丰富群众文化娱乐活动为群众提供娱乐设施。",620,52,2643,200,2024]
[31,"SSX2024031","鄯善县迪坎镇也扎坎儿孜村2024年村民活动场所提升中央财政以工代赈项目","乡村建设行动","农村公共服务-其他（文化活动广场）","新建","也扎坎儿孜村","村民休闲活动场地硬化5500平方米及相关附属设施建设。","平方米",5500,145,145,{"$nulls":4},"迪坎镇人民政府","马亮","为群众提供更好的生活环境。",174,0,735,0]
[32,"SSX2024032","鄯善县迪坎镇托特坎儿孜村2024年村容村貌提升以工代赈示范项目","乡村建设行动","农村基础设施（含产业配套基础设施）-农村道路建设","新建","托特坎儿孜村","村民体育健身、休闲活动场地硬化3500平方米，塔建木制结构藤架500平方米，修缮村内绿化带护坡30公里。","平方米、公里","4000、30",700,700,{"$nulls":4},"迪坎镇人民政府","马亮","建成后丰富村民生活，提升村民生活质量。",265,0,979,0]
["迪坎镇合计",{"$nulls":9},{"$f":"SUM(K29:K38)","v":3358.77},{"$f":"SUM(L29:L38)","v":3358.77}]
[33,"SSX2024033","达浪坎乡乔亚村饮水安全巩固提升项目","乡村建设行动","农村基础设施\n（含产业配套基础设施）-农村供水保障设施建设","新建","乔亚村","160ΦPE管子5.3公里，单价95元/米，合计50.35万元；125ΦPE管子1.55公里，单价90元/米，合计13.95万元；110ΦPE管子1.7公里,单价85元/米，合计14.45万元；90ΦPE管子2.25公里,单价68元/米，合计15.3万元；75ΦPE管子2.15公里,单价42元/米，合计9.03万元；63ΦPE管子2.5公里,单价38元/米，合计9.5万元；50ΦPE管子2公里,单价22元/米，合计4.4万元。20ΦPE管子140公里, 单价6元/米，合计84万元；小计200.98万元；水表井97个，单价0.3万元/个，合计29.1万元；闸阀井29个，单价0.3万元/个，合计8.7万元；管道开挖宽0.6米、深1.5米，每公里0.6万元，计10.5万元；回填（主干道路肩回填戈壁料80公分、村道路边回填戈壁料30公分并夯压，共4000立方、每立方45元，计18万元；回填区域水泥硬化面积2500平方米、厚度15公分、每平米100元，计25万元）合计43万元；安装费每公里1.5万元，合计26.25万元；路下穿管1.2公里、每公里30万，合计36万；弯管、接口等管道配件合计14.25万元。项目总投资368.78万元(包含项目前期费)。","公里、个","17.5、97、4000、2500、1.2",368.78,368.78,{"$nulls":4},"达浪坎乡人民政府","罗玉鹏","完善自来水管网建设，有效减少水资源浪费，降低用水成本、提高乔亚村饮水安全及供水保证率，满足国家农村安全饮水巩固提升的要求。",855,1,3357,3]
[34,"SSX2024034","达浪坎乡公共照明设施建设项目","乡村建设行动","农村公共服务-公共照明设施","新建","央布拉克村、乔亚村、玉旺坎村、英坎村、拜什塔木村","购置太阳能路灯690盏，高6米，0.3万元/盏，其中：央布拉克村150盏；乔亚村270盏；玉旺坎村100盏；英坎村50盏；拜什塔木村120盏；项目总投资207万元。","盏",690,207,207,{"$nulls":4},"达浪坎乡人民政府","罗玉鹏","有效解决村民夜间“出行难”问题，道路夜间亮化率可达到95%，改善村民的生活环境，促进公共基础提升，项目受益脱贫户9户32人。",2330,9,9419,32]
[35,"SSX2024035","达浪坎乡环卫设备采购项目","乡村建设行动","人居环境整治-农村垃圾治理","新建","央布拉克村、乔亚村、拜什塔木村、阿扎提村、玉旺坎村、英坎村","购置垃圾桶930个（240升/铁质），0.05万元/个，计46.5万元（其中：央布拉克村170个、乔亚村200个、拜什塔木村150个、阿扎提村130个、玉旺坎村150个、英坎村130个）；购置垃圾船箱167个，3方/铁质，0.37万元/个，计61.79万元（其中：央布拉克村26个；乔亚村32个；拜什塔木村30个；阿扎提村28个；玉旺坎村25个；英坎村26个）；乔亚村购置1辆垃圾车（垃圾船专用），计24.5万元；项目总投资132.79万元。","个、辆","930、167、1",132.79,132.79,{"$nulls":4},"达浪坎乡人民政府","罗玉鹏","切实解决乡村生态环境特别是垃圾分类回收处理问题，提高乡村生态环保意识，加强美丽乡村建设。",4015,17,16658,53]
[36,"SSX2024036","达浪坎乡玉旺坎村农产品晾晒场建设项目","产业发展","加工流通项目-产地初加工和精深加工","新建","玉旺坎村","新建农产品晾晒场，其中：水泥硬化场地20000平方米，130元/平方米，计260万元；新建3000平方米砂石料停车场（厚度20厘米），55元/平方米，计16.5万元；新建配套水泥硬化道路长800米、宽10米，共8000平方米，130元/平方米，计104万元，改造水、电等设施计8.52万元；计划总投资389.02万元。（包含项目前期费）。","平方米","20000、3000、8000",389.02,389.02,{"$nulls":4},"达浪坎乡人民政府","罗玉鹏","项目建成后，玉旺坎村农产品晾晒交易市场不仅能带动全乡农产品销售，提高农业产业效益，增加农民收入，同时可以吸纳周边乡镇、区县农产品来我乡晾晒、加工、交易，促进全乡产业发展和现代化建设。",610,8,2265,24]
[37,"SSX2024037","达浪坎乡英坎村农产品精深加工厂房建设项目","产业发展","加工流通项目-产地初加工和精深加工","新建","英坎村","新建钢结构车间1200平方米，高度4.5米，0.16万元/平方米，计192万元；水泥硬化场地1800平方米，120元/平方米，计21.6万；新建100平方米保鲜库1座，0.5万元/平方米，计50万元；新建100立方米消防水池及配套设施，计46万元；250kv箱式变压器2座及配套电缆线、给排水管网、下水渗坑，计63万元；大门及附属设施，计47万元，项目总投资419.6万元（含项目前期费）。","平方米、立方米","1200、1800、100、100",419.6,419.6,{"$nulls":4},"达浪坎乡人民政府","罗玉鹏","有效解决英坎村以及辐射周边村组农产品深加工问题，提高农产品附加值，提高群众收入，同时可以壮大村集体经济。",543,4,2241,9]
[38,"SSX2024039","达浪坎乡央布拉克村农产品保鲜库建设项目","产业发展","加工流通项目-农产品仓储保鲜冷链基础设施建设","新建","央布拉克村","新建保鲜库5座（每间80平方米）及配套设备，共计400平方米，0.5万元/平方米，计200万元；改建大门及附属设施、水电设施，计15万元；项目总投资215万元（含项目前期费）。","座",5,215,215,{"$nulls":4},"达浪坎乡人民政府","罗玉鹏","提高达浪坎乡冷链物流基础设施水平，大幅提高冷链流通率，降低产品腐损率，增加村集体收入的同时增加就业岗位，促进达浪坎乡经济发展和现代化建设。",756,4,3238,17]
[39,"SSX2024040","达浪坎乡央布拉克村巷道硬化建设项目","乡村建设行动","农村基础设施\n（含产业配套基础设施）-农村道路建设","新建","央布拉克村","新建巷道硬化4.1公里（20cm砂石料基层、20cmC30水泥面层）其中：修建4米宽路面3.6公里，52万/公里，计187.2万元；修建5米宽路面0.5公里，60万/公里，计30万元，项目总投资217.2万元（含项目前期费）。","公里",4.1,217.2,217.2,{"$nulls":4},"达浪坎乡人民政府","罗玉鹏","有效改善群众出行道路环境，提高群众出行安全性，降低农产品运输成本，提高运输效率，达到增收的目的。",756,4,3238,14]
["达浪坎乡合计",{"$nulls":9},{"$f":"SUM(K40:K46)","v":1949.39},{"$f":"SUM(L40:L46)","v":1949.39}]
[40,"SSX2024041","连木沁镇尤库日买里村水泥道路建设项目","乡村建设行动","农村基础设施\n（含产业配套基础设施）-产业路、资源路、旅游路建设","新建","尤库日买里村","新建水泥道路3.7公里，其中：4米宽水泥道路1.5公里，48万元/公里，计72万元；5米宽水泥道路2.2公里，造价55万元/公里，计121万元，共计193万元。（含前期费）","公里",3.7,193,193,{"$nulls":4},"连木沁镇人民政府","赵晖","本项目将改善尤库日买里村村容村貌，提升群众生活质量，极大方便村民出行条件，解决群众出行困难问题。",230,4,1200,12]
[41,"SSX2024042","连木沁镇公共照明设施项目","乡村建设行动","农村公共服务-公共照明设施","新建","曲旺克尔村、库木买里村、连木沁坎村、阿斯塔纳村","安装6米高太阳能节能路灯1080盏（其中：汗都坎村280盏、尤库日买里村450盏、阿斯塔纳村350盏）。单价0.3万元/盏，计324万元；安装8米高太阳能节能路灯500盏（其中：曲旺克尔村80盏、库木买里村220盏、连木沁坎村80盏、阿斯塔纳村120盏），单价0.35万元/盏，计175万元；共计499万元。","盏",1580,499,499,{"$nulls":4},"连木沁镇人民政府","赵晖","进一步完善公共照明基础设施，为汗都坎村、尤库日买里村、阿斯塔纳村群众夜间出行提供便捷，有效降低安全事故风险隐患。",1200,5,12000,14]
[42,"SSX2024043","连木沁镇汗都坎村沥青道路建设项目","乡村建设行动","农村基础设施（含产业配套基础设施）-产业路、资源路、旅游路建设","新建","汗都坎村","新建沥青路4.87公里，其中：宽5米沥青路4.26公里，55万元/公里，计234.3万元；宽4米沥青道路0.61公里，48万元/公里，计29.28万元；合计263.58万元。（含前期费）","公里",4.87,263.58,263.58,{"$nulls":4},"连木沁镇人民政府","赵晖","大力改善当前道路现状，提高农民生产生活条件，解决群众出行困难问题，确保群众出行安全，为群众日常生活提供便利，促进新农村建设。",442,0,1900,0]
[43,"SSX2024044","连木沁镇苏克协尔村防渗渠建设项目","产业发展","配套设施项目-小型农田水利设施建设","新建","苏克协尔村","新建防渗渠6公里，设计流量0.1m³/s，28万元/公里，计168万元。（含前期费）","公里",6,168,168,{"$nulls":4},"连木沁镇人民政府","赵晖","该项目的实施将有效改善生态环境状况，能够提高绿化覆盖率、大幅度降低自然灾害对农作物影响，保持水资源合理分配，为农（牧）民群众生提供产生活便利，提高葡萄生产水平，从而提升经济效益。",523,1,2436,7]
[44,"SSX2024045","连木沁镇库木买里村防渗渠建设项目","产业发展","配套设施项目-小型农田水利设施建设","新建","库木买里村","新建防渗渠3.2公里，设计流速0.1m³/s，28万元/公里，计89.6万元。（含前期费）","公里",3.2,89.6,89.6,{"$nulls":4},"连木沁镇人民政府","赵晖","该项目的实施，将对库木买里村水资源合理分配起到关键作用，有效改善3317亩农作物灌溉条件，减少水资源流失。",561,2,2579,9]
[45,"SSX2024046","连木沁镇巴扎村水泥道路建设项目","乡村建设行动","农村基础设施\n（含产业配套基础设施）-产业路、资源路、旅游路建设","新建","巴扎村","新建水泥道路4.5公里，路面宽4米，每公里造价48万元，合计216万元。（含前期费）","公里",4.5,216,216,{"$nulls":4},"连木沁镇人民政府","赵晖","有效改善群众出行环境，降低农产品运输成本，提升群众幸福感、获得感、安全感。",819,0,3751,0]
[46,"SSX2024047","连木沁镇阿斯塔纳村防渗渠建设项目","产业发展","配套设施项目-小型农田水利设施建设","新建","阿斯塔纳村","建设防渗渠10公里，设计流速0.1m³/s，造价28万元/公里，计280万元。（含前期费）","公里",10,280,280,{"$nulls":4},"连木沁镇人民政府","赵晖","此项目的实施，有效解决3215亩耕地正常灌溉，降低灌溉过程水损耗，提高水资源利用率。",443,1,2038,2]
[47,"SSX2024048","连木沁镇曲旺克尔村水泥硬化巷道建设项目","乡村建设行动","农村基础设施\n（含产业配套基础设施）-产业路、资源路、旅游路建设","新建","曲旺克尔村","新建水泥道路2.8公路，路面宽5米，55万元/公里，计154万元。（含前期费）","公里",2.8,154,154,{"$nulls":4},"连木沁镇人民政府","赵晖","该项目实施后，完善该村基础设施硬条件，解决农民群众安全出行问题，缩短出行时间，提升群众幸福感、获得感、安全感。",546,2,2500,6]
[48,"SSX2024049","连木沁镇尤库日买里村供水管线建设项目","产业发展","配套设施项目-产业园（区）","新建","尤库日买里村","给水管道 PE100级（1.0MPa）DN200，8300米，0.0328万元/米，计272.24万元；阀门井（φ1200 ）8座，0.39万元/座，计3.12万元； 阀门井（φ2000）1座，0.6万元/座，0.6万元；阀门井（φ2400）1座，1万元/座，1万元；减压阀井（3500×2000）1座，2.7万元/座，2.7万元；排气阀井（φ1200）18座，0.38万元/座，计6.84万元。泄水井（φ1200）18座，0.38万元/座，6.84万元。泄水湿井（φ800）18座，每座0.25万元，计4.5万元。标志桩（120×120×1000）100座，0.0097元/座，计0.97万元。合计298.81万元。（含前期费）","公里",8.3,298.81,298.81,{"$nulls":4},"连木沁镇人民政府","赵晖","本项目建设后，将完善辖区龙头企业供水基础设施硬条件，扩大企业生产能力，拓展葡萄叶子生产规模，满足特色产业重点项目发展需求。",636,4,2619,12]
[49,"SSX2024050","连木沁镇汗都夏村冷库建设项目","产业发展","加工流通-农产品仓储保鲜冷链基础设施建设","新建","汗都夏村","新建冷库10座，面积100平方米/座，5000元/平方米，单价50万元/座，共计500万元。（含前期费用）","座",10,500,500,{"$nulls":4},"连木沁镇人民政府","赵晖","项目实施后，带动周边农户种植鲜食葡萄，拓展当地农民群众增收渠道。同时满足市场需求，推进行业。",936,1,3841,3]
[50,"SSX2024051","连木沁镇阿斯塔纳村机电井更新建设项目","产业发展","配套设施项目-小型农田水利设施建设","新建","阿斯塔纳村","更新机电井1眼，包括打井、附属管道安装、电缆、水泵、高压路线、启动器、变压器等，计32.4万元。（含前期费）","眼",1,32.4,32.4,{"$nulls":4},"连木沁镇人民政府","赵晖","项目建成后，提高出水量和灌溉效率，完善农业生产配套设施设备，改善农业生产条件，提高群众积极性。",443,1,2038,2]
[51,"SSX2024052","连木沁镇机电井维修项目","产业发展","配套设施项目-小型农田水利设施建设","维修","苏克协尔村、汗都坎村、汗都夏村、曲旺克尔村","维修机电井设备15眼（其中：苏克协尔村1眼、汗都坎村6眼、汗都夏村5眼、曲旺克尔村3眼），其中包括：购置55W水泵15个，1.4万元/个，计21万元；电缆线2700米，0.004万元/米，计10.8万元；4寸6米的抽水管525根，0.04万元/根，计21万元；启动柜15个，0.6万元/个，计9万元；100KW变压器15个 ，6.5万元/台，计97.5万元，共计159.3万元。","眼",15,159.3,159.3,{"$nulls":4},"连木沁镇人民政府","赵晖","机电井维修后，增加出水量，提高灌溉面积和服务年限，保障葡萄产业健康发展，避免因浇灌不及时减产的问题，有效巩固脱贫户脱贫成果。",1500,2,8290,10]
["连木沁镇合计",{"$nulls":9},{"$f":"SUM(K48:K59)","v":2853.69},{"$f":"SUM(L48:L59)","v":2853.69}]
[52,"SSX2024053","辟展镇英也尔村、卡格托尔村防渗渠建设项目","产业发展","配套设施项目-小型农田水利设施建设","新建","英也尔村、卡格托尔村","新建防渗渠2.25公里，其中：英也尔村1.2公里，卡格托尔村1.05公里，设计流量0.2m³/s，29万元/公里，合计65.25万元（含前期费用）。","公里",2.25,65.25,65.25,{"$nulls":4},"辟展镇人民政府","方双双","降低灌溉过程水损耗，提高水利用率，通过改善农业基础设施，减少农民农业生产成本。",326,1,1724,2]
[53,"SSX2024054","辟展镇树柏沟村、兰干村防渗渠建设项目","产业发展","配套设施项目-小型农田水利设施建设","新建","树柏沟村、兰干村","新建防渗渠6公里，其中设计流量为0.2m³/s的5公里（树柏沟村2公里，兰干村3公里），29万元/公里，合计145万元；0.3m³/s流量的1公里（树柏沟村1公里），31万元/公里，合计31万元，合计176万元（含前期费用）。","公里",6,176,176,{"$nulls":4},"辟展镇人民政府","方双双","降低灌溉过程水损耗，提高水利用率，通过改善农业基础设施，减少农民农业生产成本",571,2,1794,7]
[54,"SSX2024055","辟展镇防渗渠建设项目","产业发展","配套设施项目-小型农田水利设施建设","新建","马场村、库尔干村、克其克村","新建防渗渠8公里，其中：马场村3.1公里，库尔干村2.4公里，克其克村2.5公里，设计流量0.2m³/s，29万元/公里，合计232万元（含前期费用）。","公里",8,232,232,{"$nulls":4},"辟展镇人民政府","方双双","降低灌溉过程水损耗，提高水利用率，通过改善农业基础设施，减少农民农业生产成本",849,0,3416,0]
[55,"SSX2024056","辟展镇马场村、库尔干村道路建设项目","乡村建设行动","农村基础设施（含产业配套基础设施）-产业路、资源路、旅游路建设","新建","马场村、库尔干村","新建沥青道路4.55公里，其中：库尔干村2.05公里，宽5米，55万元/公里，合计112.75万元；马场村2.5公里，宽5米，55万元/公里，合计137.5公里。库尔干村新建水泥道路0.45公里，宽5米，55万元/公里，合计24.75万元。总合计275万元（含前期费用）","公里",5,275,275,{"$nulls":4},"辟展镇人民政府","方双双","有效改善群众出行困难问题，降低农产品运输成本，提升群众幸福感，改善群众生产生活条件",1422,1,5526,4]
[56,"SSX2024057","辟展镇克其克村、兰干村道路建设项目","乡村建设行动","农村基础设施（含产业配套基础设施）-产业路、资源路、旅游路建设","新建","克其克村、兰干村","新建水泥道路3公里，其中：克其克村2.5公里，宽3米，42万元/公里，合计105万元；兰干村0.5公里，宽4米，48万元/公里，合计24万元；兰干村新建沥青道路1公里，宽5米，55万元/公里，合计55万元。总合计184万元（含前期费用）","公里",4,184,184,{"$nulls":4},"辟展镇人民政府","方双双","有效改善群众出行困难问题，降低农产品运输成本，提升群众幸福感，改善群众生产生活条件",1124,1,3629,2]
[57,"SSX2024058","辟展镇公共照明设施建设项目","乡村建设行动","农村公共服务-公共照明设施","新建","克其克村、库尔干村、马场村、树柏沟村、小东湖村、英也尔村、兰干村","购置6米高太阳能路灯441盏，其中：克其克村90盏，库尔干村88盏，马场村74盏，树柏沟村67盏，小东湖村40盏，英也尔村60盏，兰干村22盏，0.3万元/盏，合计132.3万元。","盏",441,132.3,132.3,{"$nulls":4},"辟展镇人民政府","方双双","完善各村公共照明设施，保障群众夜间出行安全，提升村容村貌",4342,6,16284,19]
[58,"SSX2024059","辟展镇公共照明设施维修项目","乡村建设行动","农村公共服务-公共照明设施","新建","大东湖村、柯柯亚村、库尔干村、兰干村、小东湖村、英也尔村、树柏沟村、乔克塔木村","维修路灯455盏，其中：大东湖村18盏，柯柯亚村22盏，库尔干村42盏，兰干村82盏，小东湖村90盏，英也尔村40盏，树柏沟村83盏，乔克塔木村78盏，0.16万元/盏，合计72.8万元。","盏",455,72.8,72.8,{"$nulls":4},"辟展镇人民政府","方双双","完善各村公共照明设施，保障群众夜间出行安全，提升村容村貌",812,4,3316,11]
[59,"SSX2024060","辟展镇环卫设备采购项目","乡村建设行动","人居环境整治-农村垃圾治理","新建","马场村、卡格托尔村、小东湖村、克其克村、英也尔村","购置6立方米垃圾车2辆，其中马场村、卡格托尔村各1辆，22.5万元/辆，计45万元；购置垃圾桶450个，其中：马场村150个，卡格托尔村100个， 小东湖村200个，0.05万元/个，计22.5万元；购置垃圾船12个，其中：克其克村4个，英也尔村8个，0.70万元/个，计8.4万元，合计75.9万元.","辆、个","2、462",75.9,75.9,{"$nulls":4},"辟展镇人民政府","方双双","项目实施后，改善各村人居环境和村容村貌，提高村级垃圾转运能力，加强乡村美丽建设",2748,4,10582,11]
[60,"SSX2024061","辟展镇英也尔村库房建设项目","产业发展","加工流通项目-农产品仓储保鲜冷链基础设施建设","新建","英也尔村","英也尔村新建仓储库房2座，290平方米/座，计580平方米，0.22万元/平方米，计127.6万元；场地硬化150平方米，160元/平方米，计2.4万元，搭建凉棚150平方米，260元/平方米，小计3.9万元，总投资133.9万元（含前期费用）。","平方米",880,133.9,133.9,{"$nulls":4},"辟展镇人民政府","方双双","项目实施后，增加村级经营性资产，深入提升村级本身“造血”功效，增加集体经营性收入",660,2,2612,5]
["辟展镇合计",{"$nulls":9},{"$f":"SUM(K61:K69)","v":1347.15},{"$f":"SUM(L61:L69)","v":1347.15}]
[61,"SSX2024062","七克台镇沥青道路建设项目（5.93公里）","乡村建设行动","农村基础设施（含产业配套基础设施）-产业路、资源路、旅游路建设","新建","库木坎村、巴喀村、亚坎村","新建沥青道路5.93公里，其中：库木坎村3.16公里、巴喀村1.94公里，亚坎村0.83公里，路面宽4米，每公里投资48万元，合计284.64万元。（含项目前期费）","公里",5.93,284.64,284.64,{"$nulls":4},"七克台镇人民政府","张德基","项目建成后，将彻底解决1554户农户道路出行难的问题，进一步减少交通事故发生，缩短群众至葡萄地的出行时间，人民群众获得感、幸福感大幅度提升。",1554,2,6308,5]
[62,"SSX2024063","七克台镇沥青道路建设项目（5.58公里）","乡村建设行动","农村基础设施（含产业配套基础设施）-产业路、资源路、旅游路建设","新建","巴喀村、亚坎村、七克台村","新建沥青道路5.58公里，其中：巴喀村1.43公里，亚坎村1.24公里、七克台村2.91公里，沥青路面宽5米，两侧25厘米水泥路肩，每公里投资55万元，合计306.9万元。（含项目前期费）","公里",5.58,{"v":306.9,"d":"306.90"},{"v":306.9,"d":"306.90"},{"$nulls":4},"七克台镇人民政府","张德基","大力改善当前道路现状，提高农民生产生活条件，解决1428户，其中受益脱贫户4户9人农户出行困难问题，确保群众出行安全，为群众日常生活提供便利，促进新农村建设。",1428,4,5895,9]
[63,"SSX2024064","七克台镇环卫设备采购项目","乡村建设行动","人居环境整治--农村垃圾治理","新建","巴喀村、台孜村、七克台村、亚坎村、南湖村、黄家坎村","采购7立方洒水车6辆，其中：巴喀村1辆、台孜村1辆、七克台村1辆、亚坎村1辆、南湖村1辆、黄家坎村1辆，每辆18.1万元，共计108.6万元。","辆",6,{"v":108.6,"d":"108.60"},{"v":108.6,"d":"108.60"},{"$nulls":4},"七克台镇人民政府","张德基","通过本项目实施，增强七克台镇6个村提升人居环境整治硬件能力，改善村容村貌，美化环境，项目受益人数11951人，其中受益脱贫户5户10人。",3079,5,11951,10]
[64,"SSX2024065","七克台镇防渗渠建设项目（2.85公里）","产业发展","配套设施项目--小型农田水利设施建设","新建","巴喀村、七克台村、热阿运村","新建防渗渠2.85公里，其中：巴喀村防渗渠2.1公里（板渠），流量为0.4m³/s，42万元/公里，小计88.2万元；七克台村防渗渠0.35公里（浆砌石），流量为0.4m³/s，50万元/公里，小计17.5万元；热阿运村防渗渠0.4公里（浆砌石），流量为0.4m³/s，50万元/公里，小计20万元；共计投资125.7万元。（含项目前期费）","公里",2.85,{"v":125.7,"d":"125.70"},{"v":125.7,"d":"125.70"},{"$nulls":4},"七克台镇人民政府","张德基","项目的实施可有效改善1374户5689人的生产条件，促进葡萄种植“一降两升”，即葡萄生产的成本降低、效益提升、品质提升，同时可带动本地群众增收。",1374,3,5689,5]
[65,"SSX2024066","七克台镇防渗渠建设项目（10.6公里）","产业发展","配套设施项目--小型农田水利设施建设","新建","巴喀村、台孜村、库木坎村、亚坎村、黄家坎村","新建防渗渠10.6公里，其中：巴喀村2公里，台孜村1.8公里，库木坎村2.3公里，亚坎村2公里，黄家坎村2.5公里，设计流量为0.2m³/s，27万元/公里，共计投资286.2万元。（含项目前期费）","公里",10.6,{"v":286.2,"d":"286.20"},{"v":286.2,"d":"286.20"},{"$nulls":4},"七克台镇人民政府","张德基","项目的实施可使2833户农户受益，其中受益脱贫户3户6人，有效改善项目区农户生产条件，促进葡萄种植“一降两升”，即葡萄生产的成本降低、效益提升、品质提升，同时可带动本地群众增收。",2833,3,10689,6]
[66,"SSX2024067","七克台镇七克台村巴扎市场升级改造项目","产业发展","生产项目--休闲农业与乡村旅游","改建","七克台村","新建拱形凉棚3000平方米，每平方米550元，小计165万元；修建东西大门2扇，每扇1.5万元，小计3万元；配套水、电、消防设施1套，小计16万元；配套卫生间1座，小计25万元；合计209万元。（含项目前期费）","平方米",3000,{"v":209,"d":"209.00"},{"v":209,"d":"209.00"},{"$nulls":4},"七克台镇人民政府","张德基","通过项目实施，活跃本地市场经济，增加群众收入，同时免费让脱贫户经营相关摊位、参与相关工作，可带动2245人受益，其中脱贫户2户4人",534,2,2245,4]
[67,"SSX2024069","七克台镇机电井更新建设项目","产业发展","配套设施项目--小型农田水利设施建设","新建","巴喀村、七克台村、亚坎村、南湖村","机电井更新8眼，其中：巴喀村4眼，七克台村1眼，亚坎村2眼，南湖村1眼，包含更换大功率水泵和相应容量变压器、电缆、水泵、井房等附属设施，每眼投资28万元，合计224万元。（包含项目前期费用）","眼",8,{"v":224,"d":"224.00"},{"v":224,"d":"224.00"},{"$nulls":4},"七克台镇人民政府","张德基","通过实施项目，提高出水量和灌溉效率，减少灌溉成本，增加灌溉面积，改善灌溉条件，项目受益农户达1800户（其中包括脱贫户4户9人）。",1800,4,7570,9]
["七克台镇合计",{"$nulls":9},{"$f":"SUM(K71:K77)","v":1545.04},{"$f":"SUM(L71:L77)","v":1545.04}]
[68,"SSX2024070","东巴扎乡塔乌村给排水管网建设项目","乡村建设行动","农村基础设施（含产业配套基础设施）-农村供水保障设施建设","新建","塔乌村","新建给水管网150PE管1.5公里，22.8万元/公里，合计34.2万元；新建给水管网50PE管4公里，11.33万元/公里，合计45.32万元；新建排水管道5.5公里，31万元/公里，合计170.5万元；管道回填和道路硬化5.5公里，11万元/公里， 合计60.5万元；弱电4公里，6万元/公里，合计24万元；给排水检修井80座、每座0.25万元，合计20万元，合计354.52万元（含项目前期费）。","公里、座","1.5、4、5.5、5.5、4、80",354.52,354.52,{"$nulls":4},"东巴扎乡政府","王勇强","提升村民自来水水质，确保供水管网水质安全。确保塔乌村环境整治取得明显成效，解决危害群众身体健康、威胁城乡居民生存环境、影响农村可持续发展的突出环境问题。",157,8,400,15]
[69,"SSX2024071","东巴扎乡公共照明设施建设项目","乡村建设行动","农村公共服务-公共照明设施","新建","塔乌村、艾孜拉村","购置高6米太阳能路灯100盏，其中：艾孜拉村50盏，塔乌村50盏，3000元/盏，共计30万元。","盏",100,{"v":30,"d":"30.00"},{"v":30,"d":"30.00"},{"$nulls":4},"东巴扎乡政府","王勇强","该项目的实施，改善人居环境，方便了群众生活，提高人民生活水平。为招商引资打造良好环境，促进经济和社会事业的全面发展，造福于民，得到社会各界的大力支持与好评，拉近了党群关系。",415,8,1387,15]
[70,"SSX2024072","东巴扎乡公共照明设施维修项目","乡村建设行动","农村公共服务-公共照明设施","新建","后梁村、塔乌村","更换太阳能路灯150盏，其中；后梁村50盏，塔乌村100/盏，0.16万元/盏，共计24万元。","盏",150,{"v":24,"d":"24.00"},{"v":24,"d":"24.00"},{"$nulls":4},"东巴扎乡政府","王勇强","改善居民夜间出行环境，同时，节省电费开支。",259,12,745,23]
[71,"SSX2024073","东巴扎乡防渗渠建设项目","产业发展","配套设施-小型农田水利设施建设","新建","前街村、艾孜拉村、塔乌村","新建3.1公里，流量为0.06m³ /s，其中：前街村1.3公里、塔乌村0.8公里、艾孜拉村1公里，28万元/公里，共计86.8万元。（含项目前期费）","公里",3.1,{"v":86.8,"d":"86.80"},{"v":86.8,"d":"86.80"},{"$nulls":4},"东巴扎乡政府","王勇强","通过改善农业基础设施，改善生产条件，降低成本，提高收入，激发群众发展内生动力，促进种植产业健康发展。",441,9,1650,16]
[72,"SSX2024074","东巴扎乡后梁村水泥道路建设项目","乡村建设行动","农村基础设施（含产业配套基础设施）-产业路、资源路、旅游路建设","新建","后梁村","新建水泥路0.87公里，宽4.5米，52万元/公里，合计45.24万元。（含项目前期费）","公里",0.87,45.24,45.24,{"$nulls":4},"东巴扎乡政府","王勇强","项目实施能够有效为群众出行提供便利，对改善群众生产生活条件，促进新农村建设，建成后能改善乡村的硬件环境。",125,4,452,8]
[73,"SSX2024075","东巴扎乡塔乌村沥青道路建设项目","乡村建设行动","农村基础设施（含产业配套基础设施）-产业路、资源路、旅游路建设","新建","塔乌村","新建路面宽5米，沥青路0.52公里，55万元/公里，合计28.6万元。（含项目前期费）","公里",0.52,{"v":28.6,"d":"28.60"},{"v":28.6,"d":"28.60"},{"$nulls":4},"东巴扎乡政府","王勇强","项目实施能够有效为群众出行提供便利，对改善群众生产生活条件，促进新农村建设，建成后能改善乡村的硬件环境。",157,8,400,15]
["东巴扎乡合计",{"$nulls":9},{"$f":"SUM(K79:K84)","v":569.16},{"$f":"SUM(L79:L84)","v":569.16}]
[74,"SSX2024076","“雨露计划”项目","巩固三保障成果","教育--享受“雨露计划”职业教育补助","新建","吐峪沟乡、鲁克沁镇、迪坎镇、达浪坎乡、连木沁镇、","对脱贫户子女接受全日制中等职业教育（含普通中专、成人中专、职业高中、技工院校）、全日制高等职业教育（含普通大专、高职院校、技师学院）的鄯善籍学生进行扶持，每生每年扶贫3000元。","人",418,{"v":125.4,"d":"125.40"},{"v":125.4,"d":"125.40"},{"$nulls":4},"鄯善县人民政府教育局","艾尼瓦尔·汗木都","1、资助脱贫户家庭子女418人。2、每人资助资金3000元\n3.改善脱贫户子女生活学习条件，解决因贫辍学的优患。",398,398,418,418]
["鄯善县教育局合计",{"$nulls":9},{"$f":"SUM(K86:K86)","v":{"v":125.4,"d":"125.40"}},{"$f":"SUM(L86:L86)","v":{"v":125.4,"d":"125.40"}}]
["鄯善县合计",{"$nulls":9},{"$f":"K18+K28+K39+K47+K60+K70+K78+K85+K87","v":{"v":17213.155,"d":"17213.1550"}},{"$f":"L18+L28+L39+L47+L60+L70+L78+L85+L87","v":{"v":17213.155,"d":"17213.1550"}}]